bitfinex/quotes_BTCUSD_20260307
["timestamp","ask_amount","ask_price","bid_price","bid_amount"]
[1772861654876,0.00022001,67952.0,67946.0,0.00803895]
[1772861655301,0.07379426,67959.0,67949.0,0.00803895]
[1772861655670,0.07379426,67959.0,67950.0,0.00951895]
[1772861656628,0.07379426,67959.0,67950.0,0.00148]
[1772861657835,0.07379426,67959.0,67951.0,0.07358243]
[1772861662372,0.07379426,67959.0,67951.0,0.07378243]
[1772861664344,0.07379378,67961.0,67952.0,0.00803895]
[1772861664345,0.00022001,67961.0,67952.0,0.00803895]
[1772861664566,0.07389375,67961.0,67952.0,0.00803895]
[1772861665508,0.07389375,67961.0,67953.0,0.07358026]
[1772861667643,0.00022001,67966.0,67953.0,0.07358026]
[1772861667837,1e-08,67970.0,67955.0,0.02162673]
[1772861667962,0.07356253,67970.0,67958.0,0.00803895]
[1772861668165,0.00738302,67969.0,67956.0,0.00148]
[1772861669579,0.00022001,67968.0,67957.0,0.07357593]
[1772861672133,0.00022001,67968.0,67958.0,0.00803895]
[1772861673046,0.00170001,67973.0,67957.0,0.07357593]
[1772861673047,0.0001239,67976.0,67963.0,0.02049792]
[1772861673261,0.07367931,67976.0,67964.0,0.00803895]
[1772861673641,0.07417647,67975.0,67964.0,0.00803895]
[1772861673889,0.07417647,67975.0,67965.0,0.07356727]
[1772861674088,0.07417647,67975.0,67965.0,0.08160622]
[1772861677557,0.08155949,67975.0,67965.0,0.07356727]
[1772861678420,0.08155949,67975.0,67964.0,0.07356727]
[1772861679532,0.02217787,67974.0,67964.0,0.07356727]
[1772861679681,0.02217787,67973.0,67964.0,0.07356727]
[1772861679883,0.00793354,67972.0,67964.0,0.07356727]
[1772861680489,0.00793354,67972.0,67957.0,0.07357593]
[1772861680685,0.00793354,67972.0,67959.0,0.00148]
[1772861680935,0.0735586,67974.0,67960.0,0.00714284]
[1772861681099,0.0735586,67974.0,67961.0,0.00148]
[1772861682497,0.07417649,67975.0,67961.0,0.00148]
[1772861682823,0.00170001,67974.0,67962.0,0.07357052]
[1772861685054,0.0752576,67974.0,67962.0,0.07357052]
[1772861686454,0.0752576,67974.0,67954.0,0.07357917]
[1772861686455,0.04725683,67972.0,67954.0,0.07357917]
[1772861686647,0.04725683,67972.0,67953.0,0.07368116]
[1772861686821,0.03011141,67971.0,67953.0,0.07368116]
[1772861687026,0.00793354,67969.0,67953.0,0.00010198]
[1772861687232,0.00793354,67966.0,67953.0,0.00010198]
[1772861687454,0.02217787,67966.0,67953.0,0.00010198]
[1772861687665,0.02217787,67965.0,67953.0,0.00010198]
[1772861687875,0.00793354,67962.0,67952.0,0.0001239]
[1772861688182,0.00793354,67960.0,67952.0,0.0001239]
[1772861690231,0.07357337,67960.0,67953.0,0.07358026]
[1772861690445,0.00793354,67959.0,67945.0,0.0003239]
[1772861690642,0.07357337,67960.0,67945.0,0.0003239]
[1772861690643,0.02217787,67956.0,67945.0,0.0003239]
[1772861690845,0.02365787,67955.0,67945.0,0.0003239]
[1772861691072,0.00793354,67954.0,67945.0,0.0003239]
[1772861692335,0.00793354,67952.0,67945.0,0.0003239]
[1772861693520,0.07358026,67953.0,67945.0,0.07391279]
[1772861693721,0.07506026,67953.0,67945.0,0.07391279]
[1772861694337,0.00148,67954.0,67945.0,0.07391279]
[1772861696452,0.07357338,67960.0,67945.0,0.07391279]
[1772861696623,0.00148,67959.0,67948.0,0.00714284]
[1772861696822,0.07357338,67960.0,67949.0,0.02049792]
[1772861697024,0.00148,67959.0,67949.0,0.02049792]
[1772861697466,0.07357338,67960.0,67949.0,0.02049792]
[1772861697846,0.00148,67959.0,67948.0,0.00714284]
[1772861698649,0.07357255,67961.0,67949.0,0.0735846]
[1772861698831,0.00148,67960.0,67949.0,0.0735846]
[1772861699385,0.00148,67959.0,67949.0,0.0735846]
[1772861699740,0.00148,67958.0,67949.0,0.0735846]
[1772861700148,0.07357255,67961.0,67949.0,0.0735846]
[1772861700360,0.00148,67960.0,67949.0,0.0735846]
[1772861700773,0.07357268,67960.0,67949.0,0.0735846]
[1772861700977,0.00148,67959.0,67949.0,0.0735846]
[1772861701377,0.07357268,67960.0,67949.0,0.0809495]
[1772861701378,0.00148,67960.0,67949.0,0.0809495]
[1772861701579,0.00010198,67962.0,67950.0,0.02282386]
[1772861701801,0.00158198,67962.0,67949.0,0.0735846]
[1772861702027,0.00158198,67962.0,67952.0,0.02239522]
[1772861702230,0.00158198,67962.0,67952.0,0.02976012]
[1772861702428,0.219771,67969.0,67949.0,0.0735846]
[1772861702429,0.00062001,67975.0,67951.0,0.0073649]
[1772861702733,0.00062001,67975.0,67959.0,0.07357377]
[1772861702915,0.00062001,67975.0,67960.0,0.00148]
[1772861703112,0.00062001,67975.0,67961.0,0.02976012]
[1772861703335,0.00062001,67975.0,67960.0,0.00148]
[1772861703964,0.00062001,67975.0,67962.0,0.0073649]
[1772861704164,0.00022001,67977.0,67962.0,0.02239522]
[1772861704325,0.00022001,67977.0,67965.0,0.0073649]
[1772861704531,0.00022001,67977.0,67966.0,0.02387522]
[1772861704733,0.0082724,67977.0,67967.0,0.07356511]
[1772861704950,0.00022001,67977.0,67967.0,0.10315503]
[1772861709132,0.00022001,67977.0,67967.0,0.10307591]
[1772861710078,0.00148,67980.0,67967.0,0.10307591]
[1772861710285,0.00022001,67982.0,67967.0,0.07331579]
[1772861710481,0.00022001,67982.0,67969.0,0.0080033]
[1772861710687,0.00022001,67982.0,67970.0,0.02239522]
[1772861711286,0.00022001,67977.0,67970.0,0.02239522]
[1772861712919,0.00022001,67977.0,67971.0,0.07356078]
[1772861716334,0.0737744,67977.0,67970.0,0.00148]
[1772861716480,0.0737744,67977.0,67968.0,0.07356186]
[1772861716481,0.00731829,67975.0,67962.0,0.00148]
[1772861716689,0.00731829,67973.0,67960.0,0.0735716]
[1772861716889,0.00731829,67973.0,67961.0,0.00148]
[1772861717279,0.00731829,67971.0,67961.0,0.00148]
[1772861717704,0.00731829,67971.0,67959.0,0.0001239]
[1772861717901,0.00731829,67971.0,67960.0,0.00148]
[1772861718188,0.00731829,67971.0,67961.0,0.0002]
[1772861718395,0.00731829,67971.0,67961.0,0.00168]
[1772861719589,0.08087959,67971.0,67961.0,0.0002]
[1772861719737,0.00731829,67970.0,67961.0,0.0002]
[1772861722595,0.07356294,67969.0,67961.0,0.0002]
[1772861722796,0.00731829,67968.0,67961.0,0.0002]
[1772861724149,0.07356511,67967.0,67961.0,0.0002]
[1772861724374,0.00731829,67966.0,67959.0,0.0001239]
[1772861726063,0.02228078,67963.0,67952.0,0.07358111]
[1772861726213,0.07357268,67960.0,67952.0,0.07358111]
[1772861726447,0.00731829,67959.0,67952.0,0.07358111]
[1772861726845,0.00731829,67959.0,67954.0,0.0002]
[1772861727347,0.07357395,67959.0,67954.0,0.0002]
[1772861727564,0.00731829,67958.0,67954.0,0.0002]
[1772861731971,0.08089323,67958.0,67954.0,0.0002]
[1772861732177,0.00731829,67957.0,67951.0,0.07368436]
[1772861733402,0.00148,67959.0,67951.0,0.07368436]
[1772861735043,0.0001119,67967.0,67953.0,0.00786514]
[1772861735213,0.00148,67966.0,67955.0,0.02827752]
[1772861735612,0.0001119,67967.0,67955.0,0.00786514]
[1772861735900,0.00148,67966.0,67956.0,0.02041238]
[1772861737483,0.00148,67966.0,67957.0,0.07357593]
[1772861738646,0.0001119,67967.0,67957.0,0.09398831]
[1772861738847,0.0001119,67967.0,67958.0,0.02041238]
[1772861739732,0.0001119,67967.0,67959.0,0.07357377]
[1772861742622,0.00022001,67974.0,67960.0,0.00148]
[1772861742827,0.00022001,67974.0,67962.0,0.00765988]
[1772861743023,0.00022001,67974.0,67963.0,0.00765988]
[1772861743227,0.00022001,67974.0,67964.0,0.02041238]
[1772861743832,0.00022001,67974.0,67965.0,0.07356727]
[1772861744337,0.00022001,67971.0,67965.0,0.07356727]
[1772861746618,0.00022001,67977.0,67967.0,0.00764857]
[1772861746789,0.00022001,67977.0,67966.0,0.00148]
[1772861746790,0.00022001,67977.0,67968.0,0.02806095]
[1772861747692,0.07377461,67977.0,67966.0,0.00148]
[1772861747841,0.00698097,67976.0,67966.0,0.00148]
[1772861753782,0.00720098,67976.0,67967.0,0.07356511]
[1772861759817,0.00727433,67975.0,67967.0,0.07356511]
[1772861760116,0.00727433,67975.0,67966.0,0.00148]
[1772861760621,0.00727433,67975.0,67964.0,0.07504727]
[1772861761006,0.00727433,67975.0,67964.0,0.07356727]
[1772861761814,0.07355753,67974.0,67964.0,0.07356727]
[1772861762131,0.00727433,67973.0,67964.0,0.07356727]
[1772861762691,0.00727433,67973.0,67966.0,0.0002]
[1772861764683,0.00727433,67973.0,67959.0,0.0002]
[1772861764684,0.00727433,67972.0,67959.0,0.0002]
[1772861764991,0.07355873,67973.0,67956.0,0.0735768]
[1772861764992,0.01988407,67967.0,67956.0,0.0735768]
[1772861765171,0.00727433,67966.0,67956.0,0.0735768]
[1772861765535,0.00727433,67966.0,67954.0,0.07377856]
[1772861765789,0.00148,67967.0,67954.0,0.07377856]
[1772861765790,0.01988407,67964.0,67954.0,0.07377856]
[1772861765944,0.00727433,67963.0,67953.0,0.07374729]
[1772861766286,0.00727433,67963.0,67954.0,0.07357702]
[1772861767074,0.00727433,67963.0,67953.0,0.07374729]
[1772861767799,0.00727433,67962.0,67953.0,0.07374729]
[1772861768119,0.0068736,67960.0,67953.0,0.07374729]
[1772861768274,0.0068736,67960.0,67952.0,0.0002]
[1772861770062,0.0068736,67959.0,67953.0,0.0002]
[1772861773026,0.08044788,67959.0,67953.0,0.0002]
[1772861776434,0.0068736,67959.0,67953.0,0.0002]
[1772861778634,0.0068736,67974.0,67953.0,0.0002]
[1772861778836,0.0068736,67972.0,67956.0,0.00711692]
[1772861779076,0.00148,67971.0,67956.0,0.00711692]
[1772861779241,0.00148,67970.0,67958.0,0.00711692]
[1772861779455,0.07394384,67976.0,67960.0,0.02638551]
[1772861779674,0.07394384,67976.0,67961.0,0.00859692]
[1772861779675,0.00038811,67976.0,67961.0,0.00859692]
[1772861779817,0.00148,67975.0,67963.0,0.00711692]
[1772861780164,0.07394363,67976.0,67963.0,0.00711692]
[1772861780366,0.00148,67975.0,67963.0,0.00711692]
[1772861780766,0.00148,67975.0,67964.0,0.07356835]
[1772861782074,0.0083536,67975.0,67964.0,0.07356835]
[1772861782973,0.00148,67975.0,67964.0,0.00711692]
[1772861783327,0.07394363,67976.0,67965.0,0.01926859]
[1772861783328,0.00038811,67976.0,67965.0,0.01926859]
[1772861783528,0.00709361,67982.0,67965.0,0.01926859]
[1772861783529,0.00148,67980.0,67965.0,0.01926859]
[1772861783732,0.00148,67980.0,67969.0,0.01926859]
[1772861783945,0.00022001,67974.0,67972.0,0.00711692]
[1772861784998,0.00039751,67974.0,67973.0,0.07355861]
[1772861785197,0.00022001,67982.0,67973.0,0.07355861]
[1772861785394,0.00038751,67983.0,67975.0,0.00711692]
[1772861785573,0.00038751,67983.0,67976.0,0.00711692]
[1772861786541,0.00022001,67988.0,67978.0,0.00711692]
[1772861786775,0.00027667,67988.0,67978.0,0.00711692]
[1772861786982,0.00027667,67988.0,67979.0,0.07355212]
[1772861787784,0.0738195,67988.0,67978.0,0.07355212]
[1772861788005,0.0068736,67986.0,67978.0,0.05263118]
[1772861790382,0.0068736,67986.0,67976.0,0.0735532]
[1772861791798,0.0083536,67986.0,67976.0,0.0735532]
[1772861792377,0.0068736,67982.0,67969.0,0.00148]
[1772861793415,0.0068736,67982.0,67968.0,0.00148]
[1772861793811,0.0068736,67982.0,67966.0,0.02652675]
[1772861794025,0.0068736,67982.0,67967.0,0.02088983]
[1772861794466,0.07354996,67981.0,67968.0,0.07356403]
[1772861794679,0.0068736,67979.0,67968.0,0.07356403]
[1772861796216,0.0068736,67979.0,67966.0,0.07356543]
[1772861796420,0.0068736,67977.0,67959.0,0.00148]
[1772861796631,0.0068736,67975.0,67960.0,0.07374018]
[1772861796827,0.0068736,67973.0,67960.0,0.07374018]
[1772861797458,0.0068736,67973.0,67960.0,0.07522018]
[1772861798749,0.00471032,67971.0,67960.0,0.07374018]
[1772861798951,0.00471032,67969.0,67960.0,0.07374018]
[1772861799328,0.00471032,67967.0,67960.0,0.07374018]
[1772861800465,0.00471032,67967.0,67960.0,0.07379684]
[1772861800691,0.07827651,67966.0,67960.0,0.07379684]
[1772861802455,0.00471032,67966.0,67960.0,0.07379684]
[1772861802758,0.00619032,67966.0,67960.0,0.07379684]
[1772861803516,0.00619032,67966.0,67960.0,0.07399684]
[1772861804512,0.00148,67966.0,67960.0,0.00042416]
[1772861804644,0.00471032,67965.0,67960.0,0.00042416]
[1772861806002,0.00471032,67965.0,67960.0,0.07399678]
[1772861808238,0.00148,67966.0,67960.0,0.07399678]
[1772861808437,0.00148,67966.0,67960.0,0.09340661]
[1772861809018,0.00148,67969.0,67960.0,0.09340661]
[1772861810057,0.00148,67970.0,67960.0,0.09340661]
[1772861810646,0.07356199,67970.0,67960.0,0.09340661]
[1772861810917,0.07504199,67970.0,67960.0,0.09340661]
[1772861811661,0.07356199,67970.0,67960.0,0.09340661]
[1772861811992,0.07504199,67970.0,67960.0,0.09340661]
[1772861812191,0.07356199,67970.0,67960.0,0.09340661]
[1772861812399,0.07504199,67970.0,67960.0,0.09340661]
[1772861812941,0.07355613,67976.0,67963.0,0.00496935]
[1772861813223,0.00148,67975.0,67964.0,0.01940983]
[1772861813566,0.07355613,67976.0,67963.0,0.00496935]
[1772861813779,0.00619032,67975.0,67963.0,0.00496935]
[1772861816745,0.07355753,67974.0,67964.0,0.07356835]
[1772861818211,0.0799668,67975.0,67964.0,0.07356835]
[1772861818868,0.00022001,67982.0,67966.0,0.02083259]
[1772861819042,0.00022001,67982.0,67965.0,0.00148]
[1772861819043,0.00022001,67982.0,67969.0,0.00489337]
[1772861819239,0.00148,67985.0,67966.0,0.00489337]
[1772861819488,0.00148,67985.0,67970.0,0.00489337]
[1772861819717,0.07354404,67987.0,67973.0,0.02083259]
[1772861819908,0.00148,67985.0,67975.0,0.00489337]
[1772861820114,0.07502404,67987.0,67975.0,0.02083259]
[1772861820333,0.00022001,67988.0,67978.0,0.00489337]
[1772861820482,0.00022001,67988.0,67979.0,0.00489337]
[1772861821006,0.07376032,67990.0,67982.0,0.02083259]
[1772861821007,0.00022001,67990.0,67982.0,0.02083259]
[1772861821263,0.00022001,67990.0,67983.0,0.00489337]
[1772861821433,0.0001675,67992.0,67983.0,0.02083259]
[1772861821635,0.0001675,67992.0,67984.0,0.00489337]
[1772861821835,0.0001675,67992.0,67985.0,0.00489337]
[1772861822193,0.0005526,67992.0,67985.0,0.00489337]
[1772861822936,0.00022001,67988.0,67986.0,0.07354455]
[1772861823179,0.07375494,67995.0,67987.0,0.02033065]
[1772861823180,0.00022001,67995.0,67987.0,0.02033065]
[1772861823453,0.00032759,67995.0,67988.0,0.00489337]
[1772861823653,0.00032759,67995.0,67988.0,0.00472319]
[1772861823949,0.00022001,67996.0,67990.0,0.00489337]
[1772861824876,0.07501081,67999.0,67989.0,0.02033065]
[1772861824877,0.00022001,68002.0,67991.0,0.02033065]
[1772861825081,0.00022001,68002.0,67994.0,0.00489337]
[1772861825388,0.00022001,68002.0,67994.0,0.0047232]
[1772861825587,0.07374739,68002.0,67994.0,0.0047232]
[1772861827462,0.07374739,68002.0,67995.0,0.07353481]
[1772861831283,0.00022001,68002.0,67995.0,0.07353481]
[1772861832505,0.07374749,68002.0,67995.0,0.07353481]
[1772861832828,0.07836881,68002.0,67995.0,0.05290379]
[1772861833257,0.07836881,68002.0,67995.0,0.03227277]
[1772861833453,0.00022001,68002.0,67991.0,0.09843229]
[1772861833654,0.00022001,68002.0,67991.0,0.07810164]
[1772861833855,0.00022001,68002.0,67991.0,0.09843229]
[1772861834015,0.00022001,68002.0,67991.0,0.07353912]
[1772861834221,0.00022001,68002.0,67993.0,0.00456252]
[1772861834424,0.00022001,68002.0,67994.0,0.024723]
[1772861835413,0.00022001,68002.0,67996.0,0.02489317]
[1772861836267,0.00022001,68002.0,67995.0,0.07353481]
[1772861836268,0.00022001,68002.0,67998.0,0.02033065]
[1772861836879,0.00022001,68002.0,67998.0,0.02489317]
[1772861837502,0.00022001,68002.0,67998.0,0.09842384]
[1772861837875,0.00022001,68002.0,67998.0,0.07353067]
[1772861838629,0.00022001,68002.0,67989.0,0.07502119]
[1772861838790,0.00462132,67999.0,67989.0,0.07354126]
[1772861838990,0.00610132,67998.0,67989.0,0.07354126]
[1772861839343,0.00610132,67998.0,67987.0,0.07354329]
[1772861839736,0.07815397,67997.0,67985.0,0.0735456]
[1772861840507,0.00462132,67996.0,67983.0,0.07389448]
[1772861840708,0.00462132,67996.0,67983.0,0.07427958]
[1772861842449,0.00462132,67994.0,67983.0,0.07427958]
[1772861842666,0.00462132,67994.0,67990.0,0.0002]
[1772861843272,0.02032005,67993.0,67977.0,0.07355354]
[1772861843480,0.00462132,67989.0,67977.0,0.07355354]
[1772861844447,0.07354238,67988.0,67976.0,0.0002]
[1772861844737,0.00462132,67987.0,67976.0,0.0002]
[1772861844912,0.00462132,67985.0,67976.0,0.0002]
[1772861846620,0.07816803,67984.0,67976.0,0.0002]
[1772861848728,0.07354671,67984.0,67976.0,0.0002]
[1772861852579,0.07502535,67986.0,67976.0,0.0002]
[1772861852733,0.00148,67985.0,67979.0,0.01870594]
[1772861852935,0.00148,67987.0,67980.0,0.02326846]
[1772861853140,0.00148,67988.0,67980.0,0.02326846]
[1772861853361,0.00148,67988.0,67977.0,0.07355414]
[1772861854438,0.00462132,67987.0,67976.0,0.0002]
[1772861854892,0.00462132,67987.0,67976.0,0.07375525]
[1772861856234,0.07354455,67986.0,67976.0,0.07375525]
[1772861856395,0.07502028,67990.0,67979.0,0.01870594]
[1772861856594,0.07354182,67989.0,67981.0,0.01870594]
[1772861856801,0.07354182,67989.0,67982.0,0.02326846]
[1772861857004,0.07502182,67989.0,67982.0,0.02326846]
[1772861857384,0.07354182,67989.0,67976.0,0.07375525]
[1772861857693,0.07354182,67989.0,67977.0,0.02326846]
[1772861858622,0.07354182,67989.0,67977.0,0.07355334]
[1772861858822,0.00494763,67988.0,67977.0,0.07355334]
[1772861860653,0.07354182,67989.0,67977.0,0.07355334]
[1772861860819,0.07354182,67989.0,67978.0,0.02362448]
[1772861861224,0.07354182,67989.0,67979.0,0.01870594]
[1772861861437,0.07354182,67989.0,67979.0,0.02362448]
[1772861861760,0.07354182,67989.0,67977.0,0.07355334]
[1772861861761,0.07848945,67989.0,67977.0,0.07355334]
[1772861862337,0.0735413,67992.0,67977.0,0.07355334]
[1772861862745,0.0735413,67992.0,67979.0,0.07355212]
[1772861862952,0.0735413,67992.0,67980.0,0.00148]
[1772861863357,0.0735413,67992.0,67981.0,0.01870594]
[1772861863568,0.0735413,67992.0,67983.0,0.01870594]
[1772861863770,0.0735413,67992.0,67984.0,0.02362448]
[1772861864217,0.0735413,67992.0,67984.0,0.00491854]
[1772861864518,0.0735413,67992.0,67984.0,0.02362448]
[1772861864721,0.0735413,67992.0,67984.0,0.09717063]
[1772861864934,0.00516764,68000.0,67986.0,0.00491854]
[1772861864935,0.0737523,67998.0,67986.0,0.00491854]
[1772861865126,0.00148,67997.0,67989.0,0.01870594]
[1772861865340,0.0737523,67998.0,67990.0,0.00491854]
[1772861865503,0.0737523,67998.0,67992.0,0.01870594]
[1772861865706,0.0737523,67998.0,67986.0,0.0018648]
[1772861865924,0.0737523,67998.0,67989.0,0.01870594]
[1772861866106,0.0737523,67998.0,67991.0,0.01870594]
[1772861866902,0.0737523,67998.0,67991.0,0.09224496]
[1772861868326,0.0737523,67998.0,67991.0,0.0971635]
[1772861870587,0.0737523,67998.0,67991.0,0.02362448]
[1772861870914,0.0737523,67998.0,67989.0,0.07354098]
[1772861872549,0.00494763,67996.0,67984.0,0.0735467]
[1772861872668,0.00533266,67996.0,67984.0,0.0735467]
[1772861873266,0.00533266,67996.0,67983.0,0.07354699]
[1772861874565,0.07353481,67995.0,67980.0,0.07355071]
[1772861874849,0.00494763,67994.0,67980.0,0.07355071]
[1772861874995,0.00148,67993.0,67980.0,0.07355071]
[1772861876291,0.00148,67993.0,67976.0,0.0002]
[1772861876292,0.02011491,67989.0,67976.0,0.0002]
[1772861876419,0.00494763,67988.0,67976.0,0.0002]
[1772861876623,0.00494763,67986.0,67976.0,0.0002]
[1772861878238,0.07502347,67987.0,67976.0,2.987e-05]
[1772861878786,0.07354347,67988.0,67976.0,2.987e-05]
[1772861878950,0.00148,67987.0,67976.0,2.987e-05]
[1772861879555,0.00454682,67986.0,67976.0,2.987e-05]
[1772861882285,0.07354563,67985.0,67976.0,2.987e-05]
[1772861883602,0.07354563,67985.0,67975.0,0.07381584]
[1772861885052,0.00148,67984.0,67975.0,0.07381584]
[1772861885220,0.12072622,67990.0,67977.0,0.0047229]
[1772861885221,0.07354054,67990.0,67977.0,0.0047229]
[1772861885426,0.07502054,67990.0,67980.0,0.01972371]
[1772861885619,0.07354054,67990.0,67983.0,0.02444661]
[1772861886227,0.07354054,67990.0,67983.0,0.02427649]
[1772861886807,0.07502054,67990.0,67983.0,0.02427649]
[1772861887911,0.07502054,67990.0,67983.0,0.0978241]
[1772861888166,0.07354054,67990.0,67984.0,0.02437244]
[1772861888343,0.07502054,67990.0,67984.0,0.02437244]
[1772861888953,0.00148,67990.0,67987.0,0.00464873]
[1772861889379,0.07353806,67992.0,67984.0,0.09327041]
[1772861889576,0.00148,67990.0,67984.0,0.09327041]
[1772861889898,0.00148,67990.0,67984.0,0.02437244]
[1772861890077,0.00148,67990.0,67979.0,0.07355105]
[1772861890944,0.0735413,67989.0,67978.0,0.07355319]
[1772861891173,0.0735413,67989.0,67979.0,0.01972371]
[1772861891385,0.0735413,67989.0,67982.0,0.00464873]
[1772861891590,0.0735413,67989.0,67982.0,0.02437244]
[1772861892845,0.004796,67998.0,67985.0,0.07354563]
[1772861892846,0.07369009,67997.0,67985.0,0.07354563]
[1772861893024,0.07369009,67997.0,67989.0,0.01972371]
[1772861893025,0.05353396,67996.0,67989.0,0.01972371]
[1772861893229,0.0016374,67997.0,67990.0,0.01972371]
[1772861893230,0.0001574,67997.0,67990.0,0.01972371]
[1772861893426,0.0001574,67997.0,67991.0,0.00447863]
[1772861893824,0.0736903,67997.0,67991.0,0.00447863]
[1772861894710,0.00022001,67996.0,67991.0,0.00447863]
[1772861895118,0.07375451,67996.0,67991.0,0.00447863]
[1772861895499,0.00170001,67998.0,67991.0,0.00447863]
[1772861895500,0.00022001,67998.0,67991.0,0.07353879]
[1772861895763,0.07375013,68000.0,67991.0,0.07353879]
[1772861895764,0.07501089,67999.0,67993.0,0.00464873]
[1772861896061,0.00148,67999.0,67993.0,0.00464873]
[1772861896587,0.07501071,67999.0,67993.0,0.00464873]
[1772861896774,0.07375013,68000.0,67993.0,0.00464873]
[1772861896976,0.07523013,68000.0,67993.0,0.00464873]
[1772861897487,0.07523013,68000.0,67993.0,0.07818566]
[1772861897829,0.07375013,68000.0,67993.0,0.07818566]
[1772861898034,0.07523013,68000.0,67993.0,0.07818566]
[1772861898857,0.07375013,68000.0,67993.0,0.07818566]
[1772861899088,0.07523013,68000.0,67993.0,0.07818566]
[1772861899393,0.00148,68001.0,67994.0,0.00464873]
[1772861899539,0.00170001,68002.0,67996.0,0.00464873]
[1772861899741,0.07522734,68002.0,67996.0,0.00464873]
[1772861900034,0.07374734,68002.0,67996.0,0.00464873]
[1772861900669,0.07522734,68002.0,67996.0,0.00464873]
[1772861901069,0.00022001,68002.0,67996.0,0.07818168]
[1772861901396,0.07522694,68003.0,67997.0,0.00464873]
[1772861901397,0.00170001,68003.0,67997.0,0.00464873]
[1772861901600,0.07522625,68003.0,67997.0,0.00464873]
[1772861901944,0.07522649,68003.0,67997.0,0.00464873]
[1772861902146,0.00022001,68005.0,67997.0,0.00464873]
[1772861902351,0.07352362,68006.0,67997.0,0.00464873]
[1772861902352,0.06823362,68006.0,67997.0,0.00464873]
[1772861903187,0.06823362,68006.0,67998.0,0.00464873]
[1772861903403,0.06971362,68006.0,67998.0,0.00464873]
[1772861903733,0.06823362,68006.0,67998.0,0.00464873]
[1772861903878,0.06971362,68006.0,67998.0,0.00464873]
[1772861904477,0.00148,68006.0,67998.0,0.00464873]
[1772861905427,0.00148,68006.0,67999.0,0.07353049]
[1772861907733,0.07522306,68006.0,67999.0,0.07353049]
[1772861910678,0.01857501,68005.0,67989.0,0.0002]
[1772861910947,0.00457599,68002.0,67989.0,0.0002]
[1772861911237,0.00457599,68001.0,67989.0,0.0002]
[1772861911395,0.024631,68000.0,67989.0,0.0002]
[1772861911602,0.07353049,67999.0,67989.0,0.0002]
[1772861913152,0.01969192,67998.0,67989.0,0.0002]
[1772861914645,0.01969192,67995.0,67985.0,0.00038503]
[1772861914843,0.07353265,67997.0,67985.0,0.00038503]
[1772861914844,0.01969192,67993.0,67985.0,0.00038503]
[1772861915518,0.01969192,67993.0,67989.0,0.0002]
[1772861915712,0.01969192,67992.0,67989.0,0.0002]
[1772861915910,0.01969192,67991.0,67989.0,0.0002]
[1772861918706,0.09323214,67990.0,67989.0,0.0002]
[1772861921581,0.07354022,67990.0,67985.0,0.00038503]
[1772861921746,0.01969192,67989.0,67983.0,0.07354771]
[1772861922070,0.01969192,67989.0,67985.0,0.0002]
[1772861924789,0.09323333,67989.0,67985.0,0.0002]
[1772861926174,0.01969192,67989.0,67985.0,0.0002]
[1772861926389,0.07354028,67990.0,67985.0,0.0002]
[1772861928162,0.07353914,67991.0,67985.0,0.0002]
[1772861929637,0.00575,68132.0,67985.0,0.0002]
[1772861929638,0.00022001,68009.0,67986.0,0.01857689]
[1772861929843,0.01921061,68017.0,67988.0,0.01857689]
[1772861930072,0.07351005,68018.0,67989.0,0.0735413]
[1772861930073,0.01921061,68008.0,67989.0,0.0735413]
[1772861930270,0.01902437,68007.0,67989.0,0.0735413]
[1772861930701,0.01902437,68007.0,67989.0,0.09211819]
[1772861931279,0.00148,68010.0,67990.0,0.01857689]
[1772861931485,0.16857149,68008.0,67989.0,0.0738511]
[1772861931683,0.07350822,68020.0,67989.0,0.0738511]
[1772861931684,0.00148,68015.0,67990.0,0.00942244]
[1772861932277,0.00148,68015.0,67992.0,0.00926364]
[1772861932278,0.07499411,68015.0,67992.0,0.00926364]
[1772861932531,0.07499411,68015.0,67994.0,0.00926364]
[1772861932712,0.14660553,68014.0,67994.0,0.00926364]
[1772861933292,0.14660553,68014.0,67994.0,0.00941854]
[1772861934318,0.14660553,68014.0,67995.0,0.07353481]
[1772861934493,0.14660553,68014.0,67996.0,0.01004108]
[1772861935321,0.14660553,68014.0,67996.0,0.01019598]
[1772861935839,0.14660553,68014.0,67996.0,0.01119598]
[1772861936817,0.14660553,68014.0,67997.0,0.07353265]
[1772861937394,0.14660553,68014.0,67997.0,0.07368755]
[1772861939788,0.24197602,68014.0,67997.0,0.07368755]
[1772861939994,0.04088036,68012.0,67997.0,0.07368755]
[1772861940421,0.14660553,68011.0,67997.0,0.07368755]
[1772861940617,0.16846152,68011.0,67997.0,0.07368755]
[1772861941198,0.18748589,68011.0,67997.0,0.07368755]
[1772861941971,0.18748589,68011.0,67995.0,0.07353481]
[1772861941972,0.22012332,68011.0,67995.0,0.07353481]
[1772861942167,0.03910584,68010.0,67998.0,0.00148]
[1772861942413,0.22012332,68011.0,67998.0,0.00148]
[1772861942622,0.00148,68009.0,67998.0,0.00148]
[1772861943261,0.14660553,68008.0,67998.0,0.00148]
[1772861943429,0.02008147,68017.0,67998.0,0.0015712]
[1772861943430,0.00148,68013.0,67998.0,0.0015712]
[1772861944388,0.22160001,68014.0,67999.0,0.07353049]
[1772861945453,0.22160001,68014.0,67999.0,0.07362169]
[1772861945698,0.14808553,68014.0,67999.0,0.07362169]
[1772861946834,0.18719137,68014.0,67999.0,0.07362169]
[1772861948393,0.04058584,68014.0,67999.0,0.07362169]
[1772861949528,0.14660553,68013.0,67999.0,0.07362169]
[1772861952155,0.18571137,68013.0,67999.0,0.07362169]
[1772861953755,0.14660553,68013.0,67999.0,0.07362169]
[1772861956069,0.18571137,68013.0,67999.0,0.07362169]
[1772861958171,0.18593138,68013.0,67999.0,0.07362169]
[1772861958720,0.16584991,68013.0,67999.0,0.07362169]
[1772861958931,0.02008147,68012.0,67999.0,0.07362169]
[1772861961137,0.01924438,68013.0,67999.0,0.07362169]
[1772861961340,0.14660553,68012.0,67999.0,0.07362169]
[1772861962855,0.14660553,68012.0,68000.0,0.21951097]
[1772861963204,0.09923939,68012.0,68000.0,0.21951097]
[1772861963525,0.09923939,68012.0,68000.0,9.12e-05]
[1772861964229,0.02030148,68019.0,68000.0,0.00547942]
[1772861964447,0.02030148,68019.0,68001.0,0.07352833]
[1772861964448,0.00022001,68019.0,68001.0,0.07352833]
[1772861964651,0.00022001,68019.0,68002.0,0.00538822]
[1772861965168,0.17532007,68039.0,68006.0,0.21951097]
[1772861965340,0.03925585,68034.0,68015.0,0.21951097]
[1772861965525,0.03925585,68034.0,68016.0,0.00148]
[1772861966325,0.03914985,68033.0,68016.0,0.00148]
[1772861966665,0.03914985,68033.0,68017.0,0.07351103]
[1772861967042,0.00049127,68034.0,68017.0,0.07351103]
[1772861967224,0.00049127,68034.0,68017.0,0.293022]
[1772861967567,0.00049127,68034.0,68017.0,0.07351103]
[1772861968876,0.03914985,68033.0,68017.0,0.07451103]
[1772861969077,0.00049127,68034.0,68017.0,0.07451103]
[1772861969280,0.00049127,68034.0,68017.0,0.07351103]
[1772861969821,0.03914985,68033.0,68017.0,0.07351103]